{"text_format":"1","workbook":"xlsx","n_sheets":3,"sheets":["Лист1","Table","Лист3"],"not_rendered":{"charts":0,"images":1,"macros":1,"external_links":1,"defined_names":9,"comments":0,"pivot_tables":0},"unopened":[],"bounds":{"document_bytes":16777216,"sheet_cells":100000,"rows_first":2000,"rows_last":500,"rows_between":2000,"halvings":0,"cell_chars":16384,"cell_head_chars":4096},"cells_cut":0,"cells_raw":0,"read":"whole","date_system":"1900"}

{"sheet":"Лист1","index":0,"n_rows":48,"n_cols":10,"rows_kept":48,"cut":false,"hidden":false,"merged":[[6,1,6,2],[7,1,7,2],[31,1,31,2],[32,1,32,2],[16,1,16,2],[28,0,28,1],[28,2,28,3],[15,1,15,2],[30,1,30,2],[17,1,17,2],[18,1,18,2],[19,1,19,2],[8,1,8,2],[27,0,27,1],[27,2,27,10],[25,0,25,10],[17,7,17,10],[18,7,18,10],[19,7,19,10],[40,1,40,2],[40,7,40,10],[37,1,37,2],[37,7,37,10],[38,7,38,10],[38,1,38,2],[35,1,35,2],[35,7,35,10],[36,1,36,2],[36,7,36,10],[39,1,39,2],[39,7,39,10],[0,0,0,10],[1,3,1,5],[1,9,1,10],[2,0,2,1],[3,0,3,1],[3,2,3,3],[2,2,2,10],[5,1,5,2],[5,7,5,10],[6,7,6,10],[7,7,7,10],[33,7,33,10],[30,7,30,10],[31,7,31,10],[32,7,32,10],[33,1,33,2],[21,1,21,2],[21,7,21,10],[26,3,26,5],[26,9,26,10],[15,7,15,10],[16,7,16,10],[20,1,20,2],[46,1,46,2],[46,7,46,10],[47,1,47,2],[47,7,47,10],[41,1,41,2],[41,7,41,10],[42,1,42,2],[42,7,42,10],[43,1,43,2],[43,7,43,10],[44,1,44,2],[44,7,44,10],[45,1,45,2],[45,7,45,10],[34,1,34,2],[34,7,34,10],[8,7,8,10],[9,1,9,2],[9,7,9,10],[14,1,14,2],[14,7,14,10],[10,1,10,2],[10,7,10,10],[11,1,11,2],[11,7,11,10],[12,1,12,2],[12,7,12,10],[13,1,13,2],[13,7,13,10],[20,7,20,10]]}
["ВНИМАТЕЛЬНО ПРОВЕРЬТЕ ШИРИНУ, ВЫСОТУ, УПРАВЛЕНИЕ, ТИП МАТЕРИАЛА И КОЛИЧЕСТВО"]
[null,null,null,"Спецификация №"]
["ФИО/телефон:"]
["Дата изготовления:"]
[]
["№","Наименование",null,"ширина","высота","упр-ние","количество","тип материала"]
[1,"Вертикальные жалюзи",null,1,1,"к.р.",1,"Лайн персиковый"]
[null,"Вертикальные жалюзи",null,2,3,"ц.р.",1,"Мистери красный АКЦИЯ"]
[null,null,null,null,null,null,null,"Оптима голубой"]
[null,null,null,null,null,null,null,"Металлик красный"]
[]
[]
[]
[]
[]
[]
[]
[]
[]
[]
[]
[]
[]
[null,"Итого ",{"$f":"PRODUCT(D7:E7,G7)","v":1}]
[]
["ВНИМАТЕЛЬНО ПРОВЕРЬТЕ ШИРИНУ, ВЫСОТУ, УПРАВЛЕНИЕ, ТИП МАТЕРИАЛА И КОЛИЧЕСТВО"]
[null,null,null,"Спецификация №",null,null,{"$f":"(G2)","v":0},null,null,{"$f":"(J2)","v":"00:00:00"}]
["ФИО/телефон:",null,{"$f":"(C3)","v":0}]
["Дата изготовления:",null,{"$f":"(C4)","v":"00:00:00"}]
[]
["№","Наименование",null,"ширина","высота","упр-ние","количество","тип материала"]
[{"$f":"(A7)","v":1},{"$f":"(B7)","v":"Вертикальные жалюзи"},null,{"$f":"(D7)","v":1},{"$f":"(E7)","v":1},"к.р.",1,"Лайн персиковый"]
[{"$f":"(A8)","v":0},{"$f":"(B8)","v":"Вертикальные жалюзи"},null,2,3,"ц.р.",1,"Мистери красный АКЦИЯ"]
[0,0,null,{"$f":"(D9)","v":0},{"$f":"(E9)","v":0},{"$f":"(F9)","v":0},{"$f":"(G9)","v":0},{"$f":"(H9)","v":"Оптима голубой"}]
[{"$f":"(A10)","v":0},0,null,0,0,0,0,"Металлик красный"]
[{"$f":"(A11)","v":0},0,null,0,0,0,0,{"$f":"(H11)","v":0}]
[{"$f":"(A12)","v":0},0,null,0,0,0,0,0]
[{"$f":"(A13)","v":0},0,null,0,0,0,0,{"$f":"(H13)","v":0}]
[{"$f":"(A14)","v":0},0,null,0,0,0,0,{"$f":"(H14)","v":0}]
[{"$f":"(A15)","v":0},0,null,0,0,0,0,{"$f":"(H15)","v":0}]
[{"$f":"(A16)","v":0},0,null,0,0,0,0,0]
[0,0,null,0,0,0,0,0]
[0,0,null,0,0,0,0,0]
[0,0,null,0,0,0,0,0]
[0,0,null,0,0,0,0,0]
[0,0,null,0,0,0,0,0]
[{"$f":"(A21)","v":0},{"$f":"(B22)","v":0},null,0,0,0,0,{"$f":"(H21)","v":0}]
[0,0,null,0,0,0,0,0]

{"sheet":"Table","index":1,"n_rows":164,"n_cols":8,"rows_kept":164,"cut":false,"hidden":false,"merged":[]}
["Столбец1","Столбец2","Столбец3","Цена ","Наименование","Статус","Индекс","Фильтр"]
[null,null,null,150,"Антарес фиолетовый",{"$f":"NOT(ISERROR(SEARCH(act_cell,Таблица2[[#This Row],[Наименование]])))","v":false},{"$f":"IF(Таблица2[[#This Row],[Статус]],COUNTIF($F$2:Таблица2[[#This Row],[Статус]],TRUE),\"\")","v":""},{"$f":"IFERROR(INDEX(Таблица2[Наименование],MATCH(ROWS($G$2:Таблица2[[#This Row],[Индекс]]),Таблица2[Индекс],0)),\"\")","v":""}]
[null,null,null,100,"Аризона голубой",{"$f":"NOT(ISERROR(SEARCH(act_cell,Таблица2[[#This Row],[Наименование]])))","v":false},{"$f":"IF(Таблица2[[#This Row],[Статус]],COUNTIF($F$2:Таблица2[[#This Row],[Статус]],TRUE),\"\")","v":""},{"$f":"IFERROR(INDEX(Таблица2[Наименование],MATCH(ROWS($G$2:Таблица2[[#This Row],[Индекс]]),Таблица2[Индекс],0)),\"\")","v":""}]
[null,null,null,100,"Аризона светло голубой",{"$f":"NOT(ISERROR(SEARCH(act_cell,Таблица2[[#This Row],[Наименование]])))","v":false},{"$f":"IF(Таблица2[[#This Row],[Статус]],COUNTIF($F$2:Таблица2[[#This Row],[Статус]],TRUE),\"\")","v":""},{"$f":"IFERROR(INDEX(Таблица2[Наименование],MATCH(ROWS($G$2:Таблица2[[#This Row],[Индекс]]),Таблица2[Индекс],0)),\"\")","v":""}]
[null,null,null,100,"Аризона розовый",{"$f":"NOT(ISERROR(SEARCH(act_cell,Таблица2[[#This Row],[Наименование]])))","v":false},{"$f":"IF(Таблица2[[#This Row],[Статус]],COUNTIF($F$2:Таблица2[[#This Row],[Статус]],TRUE),\"\")","v":""},{"$f":"IFERROR(INDEX(Таблица2[Наименование],MATCH(ROWS($G$2:Таблица2[[#This Row],[Индекс]]),Таблица2[Индекс],0)),\"\")","v":""}]
[null,null,null,200,"Бриз белый",{"$f":"NOT(ISERROR(SEARCH(act_cell,Таблица2[[#This Row],[Наименование]])))","v":false},{"$f":"IF(Таблица2[[#This Row],[Статус]],COUNTIF($F$2:Таблица2[[#This Row],[Статус]],TRUE),\"\")","v":""},{"$f":"IFERROR(INDEX(Таблица2[Наименование],MATCH(ROWS($G$2:Таблица2[[#This Row],[Индекс]]),Таблица2[Индекс],0)),\"\")","v":""}]
[null,null,null,200,"Бриз темно бежевый",{"$f":"NOT(ISERROR(SEARCH(act_cell,Таблица2[[#This Row],[Наименование]])))","v":false},{"$f":"IF(Таблица2[[#This Row],[Статус]],COUNTIF($F$2:Таблица2[[#This Row],[Статус]],TRUE),\"\")","v":""},{"$f":"IFERROR(INDEX(Таблица2[Наименование],MATCH(ROWS($G$2:Таблица2[[#This Row],[Индекс]]),Таблица2[Индекс],0)),\"\")","v":""}]
[null,null,null,200,"Бриз персиковый",{"$f":"NOT(ISERROR(SEARCH(act_cell,Таблица2[[#This Row],[Наименование]])))","v":false},{"$f":"IF(Таблица2[[#This Row],[Статус]],COUNTIF($F$2:Таблица2[[#This Row],[Статус]],TRUE),\"\")","v":""},{"$f":"IFERROR(INDEX(Таблица2[Наименование],MATCH(ROWS($G$2:Таблица2[[#This Row],[Индекс]]),Таблица2[Индекс],0)),\"\")","v":""}]
[null,null,null,200,"Бриз венге",{"$f":"NOT(ISERROR(SEARCH(act_cell,Таблица2[[#This Row],[Наименование]])))","v":false},{"$f":"IF(Таблица2[[#This Row],[Статус]],COUNTIF($F$2:Таблица2[[#This Row],[Статус]],TRUE),\"\")","v":""},{"$f":"IFERROR(INDEX(Таблица2[Наименование],MATCH(ROWS($G$2:Таблица2[[#This Row],[Индекс]]),Таблица2[Индекс],0)),\"\")","v":""}]
[null,null,null,100,"Гранд 41260 (светло зеленый)",{"$f":"NOT(ISERROR(SEARCH(act_cell,Таблица2[[#This Row],[Наименование]])))","v":false},{"$f":"IF(Таблица2[[#This Row],[Статус]],COUNTIF($F$2:Таблица2[[#This Row],[Статус]],TRUE),\"\")","v":""},{"$f":"IFERROR(INDEX(Таблица2[Наименование],MATCH(ROWS($G$2:Таблица2[[#This Row],[Индекс]]),Таблица2[Индекс],0)),\"\")","v":""}]
[null,null,null,100,"Дождь белый",{"$f":"NOT(ISERROR(SEARCH(act_cell,Таблица2[[#This Row],[Наименование]])))","v":false},{"$f":"IF(Таблица2[[#This Row],[Статус]],COUNTIF($F$2:Таблица2[[#This Row],[Статус]],TRUE),\"\")","v":""},{"$f":"IFERROR(INDEX(Таблица2[Наименование],MATCH(ROWS($G$2:Таблица2[[#This Row],[Индекс]]),Таблица2[Индекс],0)),\"\")","v":""}]
[null,null,null,100,"Дождь бежевый",{"$f":"NOT(ISERROR(SEARCH(act_cell,Таблица2[[#This Row],[Наименование]])))","v":false},{"$f":"IF(Таблица2[[#This Row],[Статус]],COUNTIF($F$2:Таблица2[[#This Row],[Статус]],TRUE),\"\")","v":""},{"$f":"IFERROR(INDEX(Таблица2[Наименование],MATCH(ROWS($G$2:Таблица2[[#This Row],[Индекс]]),Таблица2[Индекс],0)),\"\")","v":""}]
[null,null,null,100,"Дождь темно бежевый",{"$f":"NOT(ISERROR(SEARCH(act_cell,Таблица2[[#This Row],[Наименование]])))","v":false},{"$f":"IF(Таблица2[[#This Row],[Статус]],COUNTIF($F$2:Таблица2[[#This Row],[Статус]],TRUE),\"\")","v":""},{"$f":"IFERROR(INDEX(Таблица2[Наименование],MATCH(ROWS($G$2:Таблица2[[#This Row],[Индекс]]),Таблица2[Индекс],0)),\"\")","v":""}]
[null,null,null,100,"Дождь салатовый",{"$f":"NOT(ISERROR(SEARCH(act_cell,Таблица2[[#This Row],[Наименование]])))","v":false},{"$f":"IF(Таблица2[[#This Row],[Статус]],COUNTIF($F$2:Таблица2[[#This Row],[Статус]],TRUE),\"\")","v":""},{"$f":"IFERROR(INDEX(Таблица2[Наименование],MATCH(ROWS($G$2:Таблица2[[#This Row],[Индекс]]),Таблица2[Индекс],0)),\"\")","v":""}]
[null,null,null,100,"Дождь голубой",{"$f":"NOT(ISERROR(SEARCH(act_cell,Таблица2[[#This Row],[Наименование]])))","v":false},{"$f":"IF(Таблица2[[#This Row],[Статус]],COUNTIF($F$2:Таблица2[[#This Row],[Статус]],TRUE),\"\")","v":""},{"$f":"IFERROR(INDEX(Таблица2[Наименование],MATCH(ROWS($G$2:Таблица2[[#This Row],[Индекс]]),Таблица2[Индекс],0)),\"\")","v":""}]
[null,null,null,100,"Дождь персиковый",{"$f":"NOT(ISERROR(SEARCH(act_cell,Таблица2[[#This Row],[Наименование]])))","v":false},{"$f":"IF(Таблица2[[#This Row],[Статус]],COUNTIF($F$2:Таблица2[[#This Row],[Статус]],TRUE),\"\")","v":""},{"$f":"IFERROR(INDEX(Таблица2[Наименование],MATCH(ROWS($G$2:Таблица2[[#This Row],[Индекс]]),Таблица2[Индекс],0)),\"\")","v":""}]
[null,null,null,100,"Дождь лимонный",{"$f":"NOT(ISERROR(SEARCH(act_cell,Таблица2[[#This Row],[Наименование]])))","v":false},{"$f":"IF(Таблица2[[#This Row],[Статус]],COUNTIF($F$2:Таблица2[[#This Row],[Статус]],TRUE),\"\")","v":""},{"$f":"IFERROR(INDEX(Таблица2[Наименование],MATCH(ROWS($G$2:Таблица2[[#This Row],[Индекс]]),Таблица2[Индекс],0)),\"\")","v":""}]
[null,null,null,100,"Дождь светло коричневый new",{"$f":"NOT(ISERROR(SEARCH(act_cell,Таблица2[[#This Row],[Наименование]])))","v":false},{"$f":"IF(Таблица2[[#This Row],[Статус]],COUNTIF($F$2:Таблица2[[#This Row],[Статус]],TRUE),\"\")","v":""},{"$f":"IFERROR(INDEX(Таблица2[Наименование],MATCH(ROWS($G$2:Таблица2[[#This Row],[Индекс]]),Таблица2[Индекс],0)),\"\")","v":""}]
[null,null,null,100,"Дождь 9051 (оранжевый)",{"$f":"NOT(ISERROR(SEARCH(act_cell,Таблица2[[#This Row],[Наименование]])))","v":false},{"$f":"IF(Таблица2[[#This Row],[Статус]],COUNTIF($F$2:Таблица2[[#This Row],[Статус]],TRUE),\"\")","v":""},{"$f":"IFERROR(INDEX(Таблица2[Наименование],MATCH(ROWS($G$2:Таблица2[[#This Row],[Индекс]]),Таблица2[Индекс],0)),\"\")","v":""}]
[null,null,null,100,"Дождь Black-out белый",{"$f":"NOT(ISERROR(SEARCH(act_cell,Таблица2[[#This Row],[Наименование]])))","v":false},{"$f":"IF(Таблица2[[#This Row],[Статус]],COUNTIF($F$2:Таблица2[[#This Row],[Статус]],TRUE),\"\")","v":""},{"$f":"IFERROR(INDEX(Таблица2[Наименование],MATCH(ROWS($G$2:Таблица2[[#This Row],[Индекс]]),Таблица2[Индекс],0)),\"\")","v":""}]
[null,null,null,100,"Дождь Black-out персиковый new",{"$f":"NOT(ISERROR(SEARCH(act_cell,Таблица2[[#This Row],[Наименование]])))","v":false},{"$f":"IF(Таблица2[[#This Row],[Статус]],COUNTIF($F$2:Таблица2[[#This Row],[Статус]],TRUE),\"\")","v":""},{"$f":"IFERROR(INDEX(Таблица2[Наименование],MATCH(ROWS($G$2:Таблица2[[#This Row],[Индекс]]),Таблица2[Индекс],0)),\"\")","v":""}]
[null,null,null,100,"Джангл белый",{"$f":"NOT(ISERROR(SEARCH(act_cell,Таблица2[[#This Row],[Наименование]])))","v":false},{"$f":"IF(Таблица2[[#This Row],[Статус]],COUNTIF($F$2:Таблица2[[#This Row],[Статус]],TRUE),\"\")","v":""},{"$f":"IFERROR(INDEX(Таблица2[Наименование],MATCH(ROWS($G$2:Таблица2[[#This Row],[Индекс]]),Таблица2[Индекс],0)),\"\")","v":""}]
[null,null,null,100,"Джангл бежевый",{"$f":"NOT(ISERROR(SEARCH(act_cell,Таблица2[[#This Row],[Наименование]])))","v":false},{"$f":"IF(Таблица2[[#This Row],[Статус]],COUNTIF($F$2:Таблица2[[#This Row],[Статус]],TRUE),\"\")","v":""},{"$f":"IFERROR(INDEX(Таблица2[Наименование],MATCH(ROWS($G$2:Таблица2[[#This Row],[Индекс]]),Таблица2[Индекс],0)),\"\")","v":""}]
[null,null,null,100,"Джангл серебро",{"$f":"NOT(ISERROR(SEARCH(act_cell,Таблица2[[#This Row],[Наименование]])))","v":false},{"$f":"IF(Таблица2[[#This Row],[Статус]],COUNTIF($F$2:Таблица2[[#This Row],[Статус]],TRUE),\"\")","v":""},{"$f":"IFERROR(INDEX(Таблица2[Наименование],MATCH(ROWS($G$2:Таблица2[[#This Row],[Индекс]]),Таблица2[Индекс],0)),\"\")","v":""}]
[null,null,null,100,"Джангл 7005 (светло розовый) АКЦИЯ ",{"$f":"NOT(ISERROR(SEARCH(act_cell,Таблица2[[#This Row],[Наименование]])))","v":false},{"$f":"IF(Таблица2[[#This Row],[Статус]],COUNTIF($F$2:Таблица2[[#This Row],[Статус]],TRUE),\"\")","v":""},{"$f":"IFERROR(INDEX(Таблица2[Наименование],MATCH(ROWS($G$2:Таблица2[[#This Row],[Индекс]]),Таблица2[Индекс],0)),\"\")","v":""}]
[null,null,null,100,"Джангл розовый",{"$f":"NOT(ISERROR(SEARCH(act_cell,Таблица2[[#This Row],[Наименование]])))","v":false},{"$f":"IF(Таблица2[[#This Row],[Статус]],COUNTIF($F$2:Таблица2[[#This Row],[Статус]],TRUE),\"\")","v":""},{"$f":"IFERROR(INDEX(Таблица2[Наименование],MATCH(ROWS($G$2:Таблица2[[#This Row],[Индекс]]),Таблица2[Индекс],0)),\"\")","v":""}]
[null,null,null,100,"Ёлочка белая",{"$f":"NOT(ISERROR(SEARCH(act_cell,Таблица2[[#This Row],[Наименование]])))","v":false},{"$f":"IF(Таблица2[[#This Row],[Статус]],COUNTIF($F$2:Таблица2[[#This Row],[Статус]],TRUE),\"\")","v":""},{"$f":"IFERROR(INDEX(Таблица2[Наименование],MATCH(ROWS($G$2:Таблица2[[#This Row],[Индекс]]),Таблица2[Индекс],0)),\"\")","v":""}]
[null,null,null,100,"Ёлочка персиковая",{"$f":"NOT(ISERROR(SEARCH(act_cell,Таблица2[[#This Row],[Наименование]])))","v":false},{"$f":"IF(Таблица2[[#This Row],[Статус]],COUNTIF($F$2:Таблица2[[#This Row],[Статус]],TRUE),\"\")","v":""},{"$f":"IFERROR(INDEX(Таблица2[Наименование],MATCH(ROWS($G$2:Таблица2[[#This Row],[Индекс]]),Таблица2[Индекс],0)),\"\")","v":""}]
[null,null,null,100,"Ёлочка кремовая",{"$f":"NOT(ISERROR(SEARCH(act_cell,Таблица2[[#This Row],[Наименование]])))","v":false},{"$f":"IF(Таблица2[[#This Row],[Статус]],COUNTIF($F$2:Таблица2[[#This Row],[Статус]],TRUE),\"\")","v":""},{"$f":"IFERROR(INDEX(Таблица2[Наименование],MATCH(ROWS($G$2:Таблица2[[#This Row],[Индекс]]),Таблица2[Индекс],0)),\"\")","v":""}]
[null,null,null,100,"Ёлочка бежевая 7860 (Восток) new",{"$f":"NOT(ISERROR(SEARCH(act_cell,Таблица2[[#This Row],[Наименование]])))","v":false},{"$f":"IF(Таблица2[[#This Row],[Статус]],COUNTIF($F$2:Таблица2[[#This Row],[Статус]],TRUE),\"\")","v":""},{"$f":"IFERROR(INDEX(Таблица2[Наименование],MATCH(ROWS($G$2:Таблица2[[#This Row],[Индекс]]),Таблица2[Индекс],0)),\"\")","v":""}]
[null,null,null,100,"Ёлочка розовая 7878 (Восток) new",{"$f":"NOT(ISERROR(SEARCH(act_cell,Таблица2[[#This Row],[Наименование]])))","v":false},{"$f":"IF(Таблица2[[#This Row],[Статус]],COUNTIF($F$2:Таблица2[[#This Row],[Статус]],TRUE),\"\")","v":""},{"$f":"IFERROR(INDEX(Таблица2[Наименование],MATCH(ROWS($G$2:Таблица2[[#This Row],[Индекс]]),Таблица2[Индекс],0)),\"\")","v":""}]
[null,null,null,100,"Ёлочка голубая",{"$f":"NOT(ISERROR(SEARCH(act_cell,Таблица2[[#This Row],[Наименование]])))","v":false},{"$f":"IF(Таблица2[[#This Row],[Статус]],COUNTIF($F$2:Таблица2[[#This Row],[Статус]],TRUE),\"\")","v":""},{"$f":"IFERROR(INDEX(Таблица2[Наименование],MATCH(ROWS($G$2:Таблица2[[#This Row],[Индекс]]),Таблица2[Индекс],0)),\"\")","v":""}]
[null,null,null,100,"Ёлочка салатовая",{"$f":"NOT(ISERROR(SEARCH(act_cell,Таблица2[[#This Row],[Наименование]])))","v":false},{"$f":"IF(Таблица2[[#This Row],[Статус]],COUNTIF($F$2:Таблица2[[#This Row],[Статус]],TRUE),\"\")","v":""},{"$f":"IFERROR(INDEX(Таблица2[Наименование],MATCH(ROWS($G$2:Таблица2[[#This Row],[Индекс]]),Таблица2[Индекс],0)),\"\")","v":""}]
[null,null,null,100,"Зодиак сиреневый",{"$f":"NOT(ISERROR(SEARCH(act_cell,Таблица2[[#This Row],[Наименование]])))","v":false},{"$f":"IF(Таблица2[[#This Row],[Статус]],COUNTIF($F$2:Таблица2[[#This Row],[Статус]],TRUE),\"\")","v":""},{"$f":"IFERROR(INDEX(Таблица2[Наименование],MATCH(ROWS($G$2:Таблица2[[#This Row],[Индекс]]),Таблица2[Индекс],0)),\"\")","v":""}]
[null,null,null,100,"Зодиак бежевый",{"$f":"NOT(ISERROR(SEARCH(act_cell,Таблица2[[#This Row],[Наименование]])))","v":false},{"$f":"IF(Таблица2[[#This Row],[Статус]],COUNTIF($F$2:Таблица2[[#This Row],[Статус]],TRUE),\"\")","v":""},{"$f":"IFERROR(INDEX(Таблица2[Наименование],MATCH(ROWS($G$2:Таблица2[[#This Row],[Индекс]]),Таблица2[Индекс],0)),\"\")","v":""}]
[null,null,null,100,"Каир белый",{"$f":"NOT(ISERROR(SEARCH(act_cell,Таблица2[[#This Row],[Наименование]])))","v":false},{"$f":"IF(Таблица2[[#This Row],[Статус]],COUNTIF($F$2:Таблица2[[#This Row],[Статус]],TRUE),\"\")","v":""},{"$f":"IFERROR(INDEX(Таблица2[Наименование],MATCH(ROWS($G$2:Таблица2[[#This Row],[Индекс]]),Таблица2[Индекс],0)),\"\")","v":""}]
[null,null,null,100,"Квебек белый",{"$f":"NOT(ISERROR(SEARCH(act_cell,Таблица2[[#This Row],[Наименование]])))","v":false},{"$f":"IF(Таблица2[[#This Row],[Статус]],COUNTIF($F$2:Таблица2[[#This Row],[Статус]],TRUE),\"\")","v":""},{"$f":"IFERROR(INDEX(Таблица2[Наименование],MATCH(ROWS($G$2:Таблица2[[#This Row],[Индекс]]),Таблица2[Индекс],0)),\"\")","v":""}]
[null,null,null,100,"Квебек бежевый new",{"$f":"NOT(ISERROR(SEARCH(act_cell,Таблица2[[#This Row],[Наименование]])))","v":false},{"$f":"IF(Таблица2[[#This Row],[Статус]],COUNTIF($F$2:Таблица2[[#This Row],[Статус]],TRUE),\"\")","v":""},{"$f":"IFERROR(INDEX(Таблица2[Наименование],MATCH(ROWS($G$2:Таблица2[[#This Row],[Индекс]]),Таблица2[Индекс],0)),\"\")","v":""}]
[null,null,null,100,"Квебек темно бежевый",{"$f":"NOT(ISERROR(SEARCH(act_cell,Таблица2[[#This Row],[Наименование]])))","v":false},{"$f":"IF(Таблица2[[#This Row],[Статус]],COUNTIF($F$2:Таблица2[[#This Row],[Статус]],TRUE),\"\")","v":""},{"$f":"IFERROR(INDEX(Таблица2[Наименование],MATCH(ROWS($G$2:Таблица2[[#This Row],[Индекс]]),Таблица2[Индекс],0)),\"\")","v":""}]
[null,null,null,100,"Квебек коричневый",{"$f":"NOT(ISERROR(SEARCH(act_cell,Таблица2[[#This Row],[Наименование]])))","v":false},{"$f":"IF(Таблица2[[#This Row],[Статус]],COUNTIF($F$2:Таблица2[[#This Row],[Статус]],TRUE),\"\")","v":""},{"$f":"IFERROR(INDEX(Таблица2[Наименование],MATCH(ROWS($G$2:Таблица2[[#This Row],[Индекс]]),Таблица2[Индекс],0)),\"\")","v":""}]
[null,null,null,100,"Квебек 19836 (желтый)",{"$f":"NOT(ISERROR(SEARCH(act_cell,Таблица2[[#This Row],[Наименование]])))","v":false},{"$f":"IF(Таблица2[[#This Row],[Статус]],COUNTIF($F$2:Таблица2[[#This Row],[Статус]],TRUE),\"\")","v":""},{"$f":"IFERROR(INDEX(Таблица2[Наименование],MATCH(ROWS($G$2:Таблица2[[#This Row],[Индекс]]),Таблица2[Индекс],0)),\"\")","v":""}]
[null,null,null,100,"Квебек салатовый",{"$f":"NOT(ISERROR(SEARCH(act_cell,Таблица2[[#This Row],[Наименование]])))","v":false},{"$f":"IF(Таблица2[[#This Row],[Статус]],COUNTIF($F$2:Таблица2[[#This Row],[Статус]],TRUE),\"\")","v":""},{"$f":"IFERROR(INDEX(Таблица2[Наименование],MATCH(ROWS($G$2:Таблица2[[#This Row],[Индекс]]),Таблица2[Индекс],0)),\"\")","v":""}]
[null,null,null,100,"Киото белый",{"$f":"NOT(ISERROR(SEARCH(act_cell,Таблица2[[#This Row],[Наименование]])))","v":false},{"$f":"IF(Таблица2[[#This Row],[Статус]],COUNTIF($F$2:Таблица2[[#This Row],[Статус]],TRUE),\"\")","v":""},{"$f":"IFERROR(INDEX(Таблица2[Наименование],MATCH(ROWS($G$2:Таблица2[[#This Row],[Индекс]]),Таблица2[Индекс],0)),\"\")","v":""}]
[null,null,null,100,"Киото фиолетовый",{"$f":"NOT(ISERROR(SEARCH(act_cell,Таблица2[[#This Row],[Наименование]])))","v":false},{"$f":"IF(Таблица2[[#This Row],[Статус]],COUNTIF($F$2:Таблица2[[#This Row],[Статус]],TRUE),\"\")","v":""},{"$f":"IFERROR(INDEX(Таблица2[Наименование],MATCH(ROWS($G$2:Таблица2[[#This Row],[Индекс]]),Таблица2[Индекс],0)),\"\")","v":""}]
[null,null,null,100,"Киото голубой",{"$f":"NOT(ISERROR(SEARCH(act_cell,Таблица2[[#This Row],[Наименование]])))","v":false},{"$f":"IF(Таблица2[[#This Row],[Статус]],COUNTIF($F$2:Таблица2[[#This Row],[Статус]],TRUE),\"\")","v":""},{"$f":"IFERROR(INDEX(Таблица2[Наименование],MATCH(ROWS($G$2:Таблица2[[#This Row],[Индекс]]),Таблица2[Индекс],0)),\"\")","v":""}]
[null,null,null,100,"Киото персиковый",{"$f":"NOT(ISERROR(SEARCH(act_cell,Таблица2[[#This Row],[Наименование]])))","v":false},{"$f":"IF(Таблица2[[#This Row],[Статус]],COUNTIF($F$2:Таблица2[[#This Row],[Статус]],TRUE),\"\")","v":""},{"$f":"IFERROR(INDEX(Таблица2[Наименование],MATCH(ROWS($G$2:Таблица2[[#This Row],[Индекс]]),Таблица2[Индекс],0)),\"\")","v":""}]
[null,null,null,100,"Киото лимон",{"$f":"NOT(ISERROR(SEARCH(act_cell,Таблица2[[#This Row],[Наименование]])))","v":false},{"$f":"IF(Таблица2[[#This Row],[Статус]],COUNTIF($F$2:Таблица2[[#This Row],[Статус]],TRUE),\"\")","v":""},{"$f":"IFERROR(INDEX(Таблица2[Наименование],MATCH(ROWS($G$2:Таблица2[[#This Row],[Индекс]]),Таблица2[Индекс],0)),\"\")","v":""}]
[null,null,null,100,"Киото салатовый",{"$f":"NOT(ISERROR(SEARCH(act_cell,Таблица2[[#This Row],[Наименование]])))","v":false},{"$f":"IF(Таблица2[[#This Row],[Статус]],COUNTIF($F$2:Таблица2[[#This Row],[Статус]],TRUE),\"\")","v":""},{"$f":"IFERROR(INDEX(Таблица2[Наименование],MATCH(ROWS($G$2:Таблица2[[#This Row],[Индекс]]),Таблица2[Индекс],0)),\"\")","v":""}]
[null,null,null,100,"Киото синий K-12",{"$f":"NOT(ISERROR(SEARCH(act_cell,Таблица2[[#This Row],[Наименование]])))","v":false},{"$f":"IF(Таблица2[[#This Row],[Статус]],COUNTIF($F$2:Таблица2[[#This Row],[Статус]],TRUE),\"\")","v":""},{"$f":"IFERROR(INDEX(Таблица2[Наименование],MATCH(ROWS($G$2:Таблица2[[#This Row],[Индекс]]),Таблица2[Индекс],0)),\"\")","v":""}]
[null,null,null,100,"Лайн белый",{"$f":"NOT(ISERROR(SEARCH(act_cell,Таблица2[[#This Row],[Наименование]])))","v":false},{"$f":"IF(Таблица2[[#This Row],[Статус]],COUNTIF($F$2:Таблица2[[#This Row],[Статус]],TRUE),\"\")","v":""},{"$f":"IFERROR(INDEX(Таблица2[Наименование],MATCH(ROWS($G$2:Таблица2[[#This Row],[Индекс]]),Таблица2[Индекс],0)),\"\")","v":""}]
[null,null,null,100,"Лайн бежевый ",{"$f":"NOT(ISERROR(SEARCH(act_cell,Таблица2[[#This Row],[Наименование]])))","v":false},{"$f":"IF(Таблица2[[#This Row],[Статус]],COUNTIF($F$2:Таблица2[[#This Row],[Статус]],TRUE),\"\")","v":""},{"$f":"IFERROR(INDEX(Таблица2[Наименование],MATCH(ROWS($G$2:Таблица2[[#This Row],[Индекс]]),Таблица2[Индекс],0)),\"\")","v":""}]
[null,null,null,100,"Лайн темно бежевый",{"$f":"NOT(ISERROR(SEARCH(act_cell,Таблица2[[#This Row],[Наименование]])))","v":false},{"$f":"IF(Таблица2[[#This Row],[Статус]],COUNTIF($F$2:Таблица2[[#This Row],[Статус]],TRUE),\"\")","v":""},{"$f":"IFERROR(INDEX(Таблица2[Наименование],MATCH(ROWS($G$2:Таблица2[[#This Row],[Индекс]]),Таблица2[Индекс],0)),\"\")","v":""}]
[null,null,null,100,"Лайн бирюза",{"$f":"NOT(ISERROR(SEARCH(act_cell,Таблица2[[#This Row],[Наименование]])))","v":false},{"$f":"IF(Таблица2[[#This Row],[Статус]],COUNTIF($F$2:Таблица2[[#This Row],[Статус]],TRUE),\"\")","v":""},{"$f":"IFERROR(INDEX(Таблица2[Наименование],MATCH(ROWS($G$2:Таблица2[[#This Row],[Индекс]]),Таблица2[Индекс],0)),\"\")","v":""}]
[null,null,null,100,"Лайн желтый",{"$f":"NOT(ISERROR(SEARCH(act_cell,Таблица2[[#This Row],[Наименование]])))","v":false},{"$f":"IF(Таблица2[[#This Row],[Статус]],COUNTIF($F$2:Таблица2[[#This Row],[Статус]],TRUE),\"\")","v":""},{"$f":"IFERROR(INDEX(Таблица2[Наименование],MATCH(ROWS($G$2:Таблица2[[#This Row],[Индекс]]),Таблица2[Индекс],0)),\"\")","v":""}]
[null,null,null,100,"Лайн ярко желтый",{"$f":"NOT(ISERROR(SEARCH(act_cell,Таблица2[[#This Row],[Наименование]])))","v":false},{"$f":"IF(Таблица2[[#This Row],[Статус]],COUNTIF($F$2:Таблица2[[#This Row],[Статус]],TRUE),\"\")","v":""},{"$f":"IFERROR(INDEX(Таблица2[Наименование],MATCH(ROWS($G$2:Таблица2[[#This Row],[Индекс]]),Таблица2[Индекс],0)),\"\")","v":""}]
[null,null,null,100,"Лайн красный",{"$f":"NOT(ISERROR(SEARCH(act_cell,Таблица2[[#This Row],[Наименование]])))","v":false},{"$f":"IF(Таблица2[[#This Row],[Статус]],COUNTIF($F$2:Таблица2[[#This Row],[Статус]],TRUE),\"\")","v":""},{"$f":"IFERROR(INDEX(Таблица2[Наименование],MATCH(ROWS($G$2:Таблица2[[#This Row],[Индекс]]),Таблица2[Индекс],0)),\"\")","v":""}]
[null,null,null,100,"Лайн синий L-09 (темный)",{"$f":"NOT(ISERROR(SEARCH(act_cell,Таблица2[[#This Row],[Наименование]])))","v":false},{"$f":"IF(Таблица2[[#This Row],[Статус]],COUNTIF($F$2:Таблица2[[#This Row],[Статус]],TRUE),\"\")","v":""},{"$f":"IFERROR(INDEX(Таблица2[Наименование],MATCH(ROWS($G$2:Таблица2[[#This Row],[Индекс]]),Таблица2[Индекс],0)),\"\")","v":""}]
[null,null,null,100,"Лайн светло бежевый",{"$f":"NOT(ISERROR(SEARCH(act_cell,Таблица2[[#This Row],[Наименование]])))","v":false},{"$f":"IF(Таблица2[[#This Row],[Статус]],COUNTIF($F$2:Таблица2[[#This Row],[Статус]],TRUE),\"\")","v":""},{"$f":"IFERROR(INDEX(Таблица2[Наименование],MATCH(ROWS($G$2:Таблица2[[#This Row],[Индекс]]),Таблица2[Индекс],0)),\"\")","v":""}]
[null,null,null,100,"Лайн 94 голубой",{"$f":"NOT(ISERROR(SEARCH(act_cell,Таблица2[[#This Row],[Наименование]])))","v":false},{"$f":"IF(Таблица2[[#This Row],[Статус]],COUNTIF($F$2:Таблица2[[#This Row],[Статус]],TRUE),\"\")","v":""},{"$f":"IFERROR(INDEX(Таблица2[Наименование],MATCH(ROWS($G$2:Таблица2[[#This Row],[Индекс]]),Таблица2[Индекс],0)),\"\")","v":""}]
[null,null,null,100,"Лайн оранжевый",{"$f":"NOT(ISERROR(SEARCH(act_cell,Таблица2[[#This Row],[Наименование]])))","v":false},{"$f":"IF(Таблица2[[#This Row],[Статус]],COUNTIF($F$2:Таблица2[[#This Row],[Статус]],TRUE),\"\")","v":""},{"$f":"IFERROR(INDEX(Таблица2[Наименование],MATCH(ROWS($G$2:Таблица2[[#This Row],[Индекс]]),Таблица2[Индекс],0)),\"\")","v":""}]
[null,null,null,100,"Лайн персиковый",{"$f":"NOT(ISERROR(SEARCH(act_cell,Таблица2[[#This Row],[Наименование]])))","v":false},{"$f":"IF(Таблица2[[#This Row],[Статус]],COUNTIF($F$2:Таблица2[[#This Row],[Статус]],TRUE),\"\")","v":""},{"$f":"IFERROR(INDEX(Таблица2[Наименование],MATCH(ROWS($G$2:Таблица2[[#This Row],[Индекс]]),Таблица2[Индекс],0)),\"\")","v":""}]
[null,null,null,100,"Лайн абрикосовый ",{"$f":"NOT(ISERROR(SEARCH(act_cell,Таблица2[[#This Row],[Наименование]])))","v":false},{"$f":"IF(Таблица2[[#This Row],[Статус]],COUNTIF($F$2:Таблица2[[#This Row],[Статус]],TRUE),\"\")","v":""},{"$f":"IFERROR(INDEX(Таблица2[Наименование],MATCH(ROWS($G$2:Таблица2[[#This Row],[Индекс]]),Таблица2[Индекс],0)),\"\")","v":""}]
[null,null,null,100,"Лайн морковный ",{"$f":"NOT(ISERROR(SEARCH(act_cell,Таблица2[[#This Row],[Наименование]])))","v":false},{"$f":"IF(Таблица2[[#This Row],[Статус]],COUNTIF($F$2:Таблица2[[#This Row],[Статус]],TRUE),\"\")","v":""},{"$f":"IFERROR(INDEX(Таблица2[Наименование],MATCH(ROWS($G$2:Таблица2[[#This Row],[Индекс]]),Таблица2[Индекс],0)),\"\")","v":""}]
[null,null,null,100,"Лайн голубой new (Восток)",{"$f":"NOT(ISERROR(SEARCH(act_cell,Таблица2[[#This Row],[Наименование]])))","v":false},{"$f":"IF(Таблица2[[#This Row],[Статус]],COUNTIF($F$2:Таблица2[[#This Row],[Статус]],TRUE),\"\")","v":""},{"$f":"IFERROR(INDEX(Таблица2[Наименование],MATCH(ROWS($G$2:Таблица2[[#This Row],[Индекс]]),Таблица2[Индекс],0)),\"\")","v":""}]
[null,null,null,100,"Лайн светло голубой",{"$f":"NOT(ISERROR(SEARCH(act_cell,Таблица2[[#This Row],[Наименование]])))","v":false},{"$f":"IF(Таблица2[[#This Row],[Статус]],COUNTIF($F$2:Таблица2[[#This Row],[Статус]],TRUE),\"\")","v":""},{"$f":"IFERROR(INDEX(Таблица2[Наименование],MATCH(ROWS($G$2:Таблица2[[#This Row],[Индекс]]),Таблица2[Индекс],0)),\"\")","v":""}]
[null,null,null,100,"Лайн синий",{"$f":"NOT(ISERROR(SEARCH(act_cell,Таблица2[[#This Row],[Наименование]])))","v":false},{"$f":"IF(Таблица2[[#This Row],[Статус]],COUNTIF($F$2:Таблица2[[#This Row],[Статус]],TRUE),\"\")","v":""},{"$f":"IFERROR(INDEX(Таблица2[Наименование],MATCH(ROWS($G$2:Таблица2[[#This Row],[Индекс]]),Таблица2[Индекс],0)),\"\")","v":""}]
[null,null,null,100,"Лайн светло розовый",{"$f":"NOT(ISERROR(SEARCH(act_cell,Таблица2[[#This Row],[Наименование]])))","v":false},{"$f":"IF(Таблица2[[#This Row],[Статус]],COUNTIF($F$2:Таблица2[[#This Row],[Статус]],TRUE),\"\")","v":""},{"$f":"IFERROR(INDEX(Таблица2[Наименование],MATCH(ROWS($G$2:Таблица2[[#This Row],[Индекс]]),Таблица2[Индекс],0)),\"\")","v":""}]
[null,null,null,100,"Лайн терракотовый",{"$f":"NOT(ISERROR(SEARCH(act_cell,Таблица2[[#This Row],[Наименование]])))","v":false},{"$f":"IF(Таблица2[[#This Row],[Статус]],COUNTIF($F$2:Таблица2[[#This Row],[Статус]],TRUE),\"\")","v":""},{"$f":"IFERROR(INDEX(Таблица2[Наименование],MATCH(ROWS($G$2:Таблица2[[#This Row],[Индекс]]),Таблица2[Индекс],0)),\"\")","v":""}]
[null,null,null,100,"Лайн серый",{"$f":"NOT(ISERROR(SEARCH(act_cell,Таблица2[[#This Row],[Наименование]])))","v":false},{"$f":"IF(Таблица2[[#This Row],[Статус]],COUNTIF($F$2:Таблица2[[#This Row],[Статус]],TRUE),\"\")","v":""},{"$f":"IFERROR(INDEX(Таблица2[Наименование],MATCH(ROWS($G$2:Таблица2[[#This Row],[Индекс]]),Таблица2[Индекс],0)),\"\")","v":""}]
[null,null,null,100,"Лайн 7418 (темно зеленый)",{"$f":"NOT(ISERROR(SEARCH(act_cell,Таблица2[[#This Row],[Наименование]])))","v":false},{"$f":"IF(Таблица2[[#This Row],[Статус]],COUNTIF($F$2:Таблица2[[#This Row],[Статус]],TRUE),\"\")","v":""},{"$f":"IFERROR(INDEX(Таблица2[Наименование],MATCH(ROWS($G$2:Таблица2[[#This Row],[Индекс]]),Таблица2[Индекс],0)),\"\")","v":""}]
[null,null,null,100,"Лайн светло зеленый",{"$f":"NOT(ISERROR(SEARCH(act_cell,Таблица2[[#This Row],[Наименование]])))","v":false},{"$f":"IF(Таблица2[[#This Row],[Статус]],COUNTIF($F$2:Таблица2[[#This Row],[Статус]],TRUE),\"\")","v":""},{"$f":"IFERROR(INDEX(Таблица2[Наименование],MATCH(ROWS($G$2:Таблица2[[#This Row],[Индекс]]),Таблица2[Индекс],0)),\"\")","v":""}]
[null,null,null,100,"Лайн 7475 (зеленое яблоко) new",{"$f":"NOT(ISERROR(SEARCH(act_cell,Таблица2[[#This Row],[Наименование]])))","v":false},{"$f":"IF(Таблица2[[#This Row],[Статус]],COUNTIF($F$2:Таблица2[[#This Row],[Статус]],TRUE),\"\")","v":""},{"$f":"IFERROR(INDEX(Таблица2[Наименование],MATCH(ROWS($G$2:Таблица2[[#This Row],[Индекс]]),Таблица2[Индекс],0)),\"\")","v":""}]
[null,null,null,100,"Лайн 7490 (черный)",{"$f":"NOT(ISERROR(SEARCH(act_cell,Таблица2[[#This Row],[Наименование]])))","v":false},{"$f":"IF(Таблица2[[#This Row],[Статус]],COUNTIF($F$2:Таблица2[[#This Row],[Статус]],TRUE),\"\")","v":""},{"$f":"IFERROR(INDEX(Таблица2[Наименование],MATCH(ROWS($G$2:Таблица2[[#This Row],[Индекс]]),Таблица2[Индекс],0)),\"\")","v":""}]
[null,null,null,100,"Магнолия 1056 морковная",{"$f":"NOT(ISERROR(SEARCH(act_cell,Таблица2[[#This Row],[Наименование]])))","v":false},{"$f":"IF(Таблица2[[#This Row],[Статус]],COUNTIF($F$2:Таблица2[[#This Row],[Статус]],TRUE),\"\")","v":""},{"$f":"IFERROR(INDEX(Таблица2[Наименование],MATCH(ROWS($G$2:Таблица2[[#This Row],[Индекс]]),Таблица2[Индекс],0)),\"\")","v":""}]
[null,null,null,100,"Магнолия 1083 зеленое яблоко",{"$f":"NOT(ISERROR(SEARCH(act_cell,Таблица2[[#This Row],[Наименование]])))","v":false},{"$f":"IF(Таблица2[[#This Row],[Статус]],COUNTIF($F$2:Таблица2[[#This Row],[Статус]],TRUE),\"\")","v":""},{"$f":"IFERROR(INDEX(Таблица2[Наименование],MATCH(ROWS($G$2:Таблица2[[#This Row],[Индекс]]),Таблица2[Индекс],0)),\"\")","v":""}]
[null,null,null,100,"Магнолия 1017 голубая",{"$f":"NOT(ISERROR(SEARCH(act_cell,Таблица2[[#This Row],[Наименование]])))","v":false},{"$f":"IF(Таблица2[[#This Row],[Статус]],COUNTIF($F$2:Таблица2[[#This Row],[Статус]],TRUE),\"\")","v":""},{"$f":"IFERROR(INDEX(Таблица2[Наименование],MATCH(ROWS($G$2:Таблица2[[#This Row],[Индекс]]),Таблица2[Индекс],0)),\"\")","v":""}]
[null,null,null,100,"Магнолия 1076 салатовая",{"$f":"NOT(ISERROR(SEARCH(act_cell,Таблица2[[#This Row],[Наименование]])))","v":false},{"$f":"IF(Таблица2[[#This Row],[Статус]],COUNTIF($F$2:Таблица2[[#This Row],[Статус]],TRUE),\"\")","v":""},{"$f":"IFERROR(INDEX(Таблица2[Наименование],MATCH(ROWS($G$2:Таблица2[[#This Row],[Индекс]]),Таблица2[Индекс],0)),\"\")","v":""}]
[null,null,null,100,"Магнолия 1011 (белый) АКЦИЯ",{"$f":"NOT(ISERROR(SEARCH(act_cell,Таблица2[[#This Row],[Наименование]])))","v":false},{"$f":"IF(Таблица2[[#This Row],[Статус]],COUNTIF($F$2:Таблица2[[#This Row],[Статус]],TRUE),\"\")","v":""},{"$f":"IFERROR(INDEX(Таблица2[Наименование],MATCH(ROWS($G$2:Таблица2[[#This Row],[Индекс]]),Таблица2[Индекс],0)),\"\")","v":""}]
[null,null,null,100,"Магнолия 1077 (пшеничный) АКЦИЯ",{"$f":"NOT(ISERROR(SEARCH(act_cell,Таблица2[[#This Row],[Наименование]])))","v":false},{"$f":"IF(Таблица2[[#This Row],[Статус]],COUNTIF($F$2:Таблица2[[#This Row],[Статус]],TRUE),\"\")","v":""},{"$f":"IFERROR(INDEX(Таблица2[Наименование],MATCH(ROWS($G$2:Таблица2[[#This Row],[Индекс]]),Таблица2[Индекс],0)),\"\")","v":""}]
[null,null,null,100,"Магнолия 1032 (бежевый) АКЦИЯ",{"$f":"NOT(ISERROR(SEARCH(act_cell,Таблица2[[#This Row],[Наименование]])))","v":false},{"$f":"IF(Таблица2[[#This Row],[Статус]],COUNTIF($F$2:Таблица2[[#This Row],[Статус]],TRUE),\"\")","v":""},{"$f":"IFERROR(INDEX(Таблица2[Наименование],MATCH(ROWS($G$2:Таблица2[[#This Row],[Индекс]]),Таблица2[Индекс],0)),\"\")","v":""}]
[null,null,null,100,"Мистери белый",{"$f":"NOT(ISERROR(SEARCH(act_cell,Таблица2[[#This Row],[Наименование]])))","v":false},{"$f":"IF(Таблица2[[#This Row],[Статус]],COUNTIF($F$2:Таблица2[[#This Row],[Статус]],TRUE),\"\")","v":""},{"$f":"IFERROR(INDEX(Таблица2[Наименование],MATCH(ROWS($G$2:Таблица2[[#This Row],[Индекс]]),Таблица2[Индекс],0)),\"\")","v":""}]
[null,null,null,100,"Мистери розовый",{"$f":"NOT(ISERROR(SEARCH(act_cell,Таблица2[[#This Row],[Наименование]])))","v":false},{"$f":"IF(Таблица2[[#This Row],[Статус]],COUNTIF($F$2:Таблица2[[#This Row],[Статус]],TRUE),\"\")","v":""},{"$f":"IFERROR(INDEX(Таблица2[Наименование],MATCH(ROWS($G$2:Таблица2[[#This Row],[Индекс]]),Таблица2[Индекс],0)),\"\")","v":""}]
[null,null,null,100,"Мистери салатовый",{"$f":"NOT(ISERROR(SEARCH(act_cell,Таблица2[[#This Row],[Наименование]])))","v":false},{"$f":"IF(Таблица2[[#This Row],[Статус]],COUNTIF($F$2:Таблица2[[#This Row],[Статус]],TRUE),\"\")","v":""},{"$f":"IFERROR(INDEX(Таблица2[Наименование],MATCH(ROWS($G$2:Таблица2[[#This Row],[Индекс]]),Таблица2[Индекс],0)),\"\")","v":""}]
[null,null,null,100,"Мистери фиолетовый",{"$f":"NOT(ISERROR(SEARCH(act_cell,Таблица2[[#This Row],[Наименование]])))","v":false},{"$f":"IF(Таблица2[[#This Row],[Статус]],COUNTIF($F$2:Таблица2[[#This Row],[Статус]],TRUE),\"\")","v":""},{"$f":"IFERROR(INDEX(Таблица2[Наименование],MATCH(ROWS($G$2:Таблица2[[#This Row],[Индекс]]),Таблица2[Индекс],0)),\"\")","v":""}]
[null,null,null,100,"Мистери красный АКЦИЯ",{"$f":"NOT(ISERROR(SEARCH(act_cell,Таблица2[[#This Row],[Наименование]])))","v":false},{"$f":"IF(Таблица2[[#This Row],[Статус]],COUNTIF($F$2:Таблица2[[#This Row],[Статус]],TRUE),\"\")","v":""},{"$f":"IFERROR(INDEX(Таблица2[Наименование],MATCH(ROWS($G$2:Таблица2[[#This Row],[Индекс]]),Таблица2[Индекс],0)),\"\")","v":""}]
[null,null,null,100,"Мистери оранжевый",{"$f":"NOT(ISERROR(SEARCH(act_cell,Таблица2[[#This Row],[Наименование]])))","v":false},{"$f":"IF(Таблица2[[#This Row],[Статус]],COUNTIF($F$2:Таблица2[[#This Row],[Статус]],TRUE),\"\")","v":""},{"$f":"IFERROR(INDEX(Таблица2[Наименование],MATCH(ROWS($G$2:Таблица2[[#This Row],[Индекс]]),Таблица2[Индекс],0)),\"\")","v":""}]
[null,null,null,100,"Мистери морковный new",{"$f":"NOT(ISERROR(SEARCH(act_cell,Таблица2[[#This Row],[Наименование]])))","v":false},{"$f":"IF(Таблица2[[#This Row],[Статус]],COUNTIF($F$2:Таблица2[[#This Row],[Статус]],TRUE),\"\")","v":""},{"$f":"IFERROR(INDEX(Таблица2[Наименование],MATCH(ROWS($G$2:Таблица2[[#This Row],[Индекс]]),Таблица2[Индекс],0)),\"\")","v":""}]
[null,null,null,100,"Мистери вишня",{"$f":"NOT(ISERROR(SEARCH(act_cell,Таблица2[[#This Row],[Наименование]])))","v":false},{"$f":"IF(Таблица2[[#This Row],[Статус]],COUNTIF($F$2:Таблица2[[#This Row],[Статус]],TRUE),\"\")","v":""},{"$f":"IFERROR(INDEX(Таблица2[Наименование],MATCH(ROWS($G$2:Таблица2[[#This Row],[Индекс]]),Таблица2[Индекс],0)),\"\")","v":""}]
[null,null,null,100,"Мистери бежевый",{"$f":"NOT(ISERROR(SEARCH(act_cell,Таблица2[[#This Row],[Наименование]])))","v":false},{"$f":"IF(Таблица2[[#This Row],[Статус]],COUNTIF($F$2:Таблица2[[#This Row],[Статус]],TRUE),\"\")","v":""},{"$f":"IFERROR(INDEX(Таблица2[Наименование],MATCH(ROWS($G$2:Таблица2[[#This Row],[Индекс]]),Таблица2[Индекс],0)),\"\")","v":""}]
[null,null,null,100,"Мистери изумруд АКЦИЯ",{"$f":"NOT(ISERROR(SEARCH(act_cell,Таблица2[[#This Row],[Наименование]])))","v":false},{"$f":"IF(Таблица2[[#This Row],[Статус]],COUNTIF($F$2:Таблица2[[#This Row],[Статус]],TRUE),\"\")","v":""},{"$f":"IFERROR(INDEX(Таблица2[Наименование],MATCH(ROWS($G$2:Таблица2[[#This Row],[Индекс]]),Таблица2[Индекс],0)),\"\")","v":""}]
[null,null,null,100,"Мистери синий АКЦИЯ",{"$f":"NOT(ISERROR(SEARCH(act_cell,Таблица2[[#This Row],[Наименование]])))","v":false},{"$f":"IF(Таблица2[[#This Row],[Статус]],COUNTIF($F$2:Таблица2[[#This Row],[Статус]],TRUE),\"\")","v":""},{"$f":"IFERROR(INDEX(Таблица2[Наименование],MATCH(ROWS($G$2:Таблица2[[#This Row],[Индекс]]),Таблица2[Индекс],0)),\"\")","v":""}]
[null,null,null,100,"Мистери ярко желтый",{"$f":"NOT(ISERROR(SEARCH(act_cell,Таблица2[[#This Row],[Наименование]])))","v":false},{"$f":"IF(Таблица2[[#This Row],[Статус]],COUNTIF($F$2:Таблица2[[#This Row],[Статус]],TRUE),\"\")","v":""},{"$f":"IFERROR(INDEX(Таблица2[Наименование],MATCH(ROWS($G$2:Таблица2[[#This Row],[Индекс]]),Таблица2[Индекс],0)),\"\")","v":""}]
[null,null,null,100,"Мистери сиреневый",{"$f":"NOT(ISERROR(SEARCH(act_cell,Таблица2[[#This Row],[Наименование]])))","v":false},{"$f":"IF(Таблица2[[#This Row],[Статус]],COUNTIF($F$2:Таблица2[[#This Row],[Статус]],TRUE),\"\")","v":""},{"$f":"IFERROR(INDEX(Таблица2[Наименование],MATCH(ROWS($G$2:Таблица2[[#This Row],[Индекс]]),Таблица2[Индекс],0)),\"\")","v":""}]
[null,null,null,100,"Мистери терракотовый",{"$f":"NOT(ISERROR(SEARCH(act_cell,Таблица2[[#This Row],[Наименование]])))","v":false},{"$f":"IF(Таблица2[[#This Row],[Статус]],COUNTIF($F$2:Таблица2[[#This Row],[Статус]],TRUE),\"\")","v":""},{"$f":"IFERROR(INDEX(Таблица2[Наименование],MATCH(ROWS($G$2:Таблица2[[#This Row],[Индекс]]),Таблица2[Индекс],0)),\"\")","v":""}]
[null,null,null,100,"Мистери светло зелёный",{"$f":"NOT(ISERROR(SEARCH(act_cell,Таблица2[[#This Row],[Наименование]])))","v":false},{"$f":"IF(Таблица2[[#This Row],[Статус]],COUNTIF($F$2:Таблица2[[#This Row],[Статус]],TRUE),\"\")","v":""},{"$f":"IFERROR(INDEX(Таблица2[Наименование],MATCH(ROWS($G$2:Таблица2[[#This Row],[Индекс]]),Таблица2[Индекс],0)),\"\")","v":""}]
[null,null,null,100,"Мистери голубой",{"$f":"NOT(ISERROR(SEARCH(act_cell,Таблица2[[#This Row],[Наименование]])))","v":false},{"$f":"IF(Таблица2[[#This Row],[Статус]],COUNTIF($F$2:Таблица2[[#This Row],[Статус]],TRUE),\"\")","v":""},{"$f":"IFERROR(INDEX(Таблица2[Наименование],MATCH(ROWS($G$2:Таблица2[[#This Row],[Индекс]]),Таблица2[Индекс],0)),\"\")","v":""}]
[null,null,null,100,"Мистери бордо",{"$f":"NOT(ISERROR(SEARCH(act_cell,Таблица2[[#This Row],[Наименование]])))","v":false},{"$f":"IF(Таблица2[[#This Row],[Статус]],COUNTIF($F$2:Таблица2[[#This Row],[Статус]],TRUE),\"\")","v":""},{"$f":"IFERROR(INDEX(Таблица2[Наименование],MATCH(ROWS($G$2:Таблица2[[#This Row],[Индекс]]),Таблица2[Индекс],0)),\"\")","v":""}]
[null,null,null,100,"Мистери коричневый АКЦИЯ",{"$f":"NOT(ISERROR(SEARCH(act_cell,Таблица2[[#This Row],[Наименование]])))","v":false},{"$f":"IF(Таблица2[[#This Row],[Статус]],COUNTIF($F$2:Таблица2[[#This Row],[Статус]],TRUE),\"\")","v":""},{"$f":"IFERROR(INDEX(Таблица2[Наименование],MATCH(ROWS($G$2:Таблица2[[#This Row],[Индекс]]),Таблица2[Индекс],0)),\"\")","v":""}]
[null,null,null,100,"Металлик красный",{"$f":"NOT(ISERROR(SEARCH(act_cell,Таблица2[[#This Row],[Наименование]])))","v":false},{"$f":"IF(Таблица2[[#This Row],[Статус]],COUNTIF($F$2:Таблица2[[#This Row],[Статус]],TRUE),\"\")","v":""},{"$f":"IFERROR(INDEX(Таблица2[Наименование],MATCH(ROWS($G$2:Таблица2[[#This Row],[Индекс]]),Таблица2[Индекс],0)),\"\")","v":""}]
[null,null,null,100,"Металлик голубой",{"$f":"NOT(ISERROR(SEARCH(act_cell,Таблица2[[#This Row],[Наименование]])))","v":false},{"$f":"IF(Таблица2[[#This Row],[Статус]],COUNTIF($F$2:Таблица2[[#This Row],[Статус]],TRUE),\"\")","v":""},{"$f":"IFERROR(INDEX(Таблица2[Наименование],MATCH(ROWS($G$2:Таблица2[[#This Row],[Индекс]]),Таблица2[Индекс],0)),\"\")","v":""}]
[null,null,null,100,"Венеция золото",{"$f":"NOT(ISERROR(SEARCH(act_cell,Таблица2[[#This Row],[Наименование]])))","v":false},{"$f":"IF(Таблица2[[#This Row],[Статус]],COUNTIF($F$2:Таблица2[[#This Row],[Статус]],TRUE),\"\")","v":""},{"$f":"IFERROR(INDEX(Таблица2[Наименование],MATCH(ROWS($G$2:Таблица2[[#This Row],[Индекс]]),Таблица2[Индекс],0)),\"\")","v":""}]
[null,null,null,100,"Венеция серебро",{"$f":"NOT(ISERROR(SEARCH(act_cell,Таблица2[[#This Row],[Наименование]])))","v":false},{"$f":"IF(Таблица2[[#This Row],[Статус]],COUNTIF($F$2:Таблица2[[#This Row],[Статус]],TRUE),\"\")","v":""},{"$f":"IFERROR(INDEX(Таблица2[Наименование],MATCH(ROWS($G$2:Таблица2[[#This Row],[Индекс]]),Таблица2[Индекс],0)),\"\")","v":""}]
[null,null,null,100,"Металлик фиолетовый",{"$f":"NOT(ISERROR(SEARCH(act_cell,Таблица2[[#This Row],[Наименование]])))","v":false},{"$f":"IF(Таблица2[[#This Row],[Статус]],COUNTIF($F$2:Таблица2[[#This Row],[Статус]],TRUE),\"\")","v":""},{"$f":"IFERROR(INDEX(Таблица2[Наименование],MATCH(ROWS($G$2:Таблица2[[#This Row],[Индекс]]),Таблица2[Индекс],0)),\"\")","v":""}]
[null,null,null,100,"Оптима зеленый",{"$f":"NOT(ISERROR(SEARCH(act_cell,Таблица2[[#This Row],[Наименование]])))","v":false},{"$f":"IF(Таблица2[[#This Row],[Статус]],COUNTIF($F$2:Таблица2[[#This Row],[Статус]],TRUE),\"\")","v":""},{"$f":"IFERROR(INDEX(Таблица2[Наименование],MATCH(ROWS($G$2:Таблица2[[#This Row],[Индекс]]),Таблица2[Индекс],0)),\"\")","v":""}]
[null,null,null,100,"Оптима салатовый",{"$f":"NOT(ISERROR(SEARCH(act_cell,Таблица2[[#This Row],[Наименование]])))","v":false},{"$f":"IF(Таблица2[[#This Row],[Статус]],COUNTIF($F$2:Таблица2[[#This Row],[Статус]],TRUE),\"\")","v":""},{"$f":"IFERROR(INDEX(Таблица2[Наименование],MATCH(ROWS($G$2:Таблица2[[#This Row],[Индекс]]),Таблица2[Индекс],0)),\"\")","v":""}]
[null,null,null,100,"Оптима персиковый",{"$f":"NOT(ISERROR(SEARCH(act_cell,Таблица2[[#This Row],[Наименование]])))","v":false},{"$f":"IF(Таблица2[[#This Row],[Статус]],COUNTIF($F$2:Таблица2[[#This Row],[Статус]],TRUE),\"\")","v":""},{"$f":"IFERROR(INDEX(Таблица2[Наименование],MATCH(ROWS($G$2:Таблица2[[#This Row],[Индекс]]),Таблица2[Индекс],0)),\"\")","v":""}]
[null,null,null,100,"Оптима голубой",{"$f":"NOT(ISERROR(SEARCH(act_cell,Таблица2[[#This Row],[Наименование]])))","v":false},{"$f":"IF(Таблица2[[#This Row],[Статус]],COUNTIF($F$2:Таблица2[[#This Row],[Статус]],TRUE),\"\")","v":""},{"$f":"IFERROR(INDEX(Таблица2[Наименование],MATCH(ROWS($G$2:Таблица2[[#This Row],[Индекс]]),Таблица2[Индекс],0)),\"\")","v":""}]
[null,null,null,100,"Оптима бежевый",{"$f":"NOT(ISERROR(SEARCH(act_cell,Таблица2[[#This Row],[Наименование]])))","v":false},{"$f":"IF(Таблица2[[#This Row],[Статус]],COUNTIF($F$2:Таблица2[[#This Row],[Статус]],TRUE),\"\")","v":""},{"$f":"IFERROR(INDEX(Таблица2[Наименование],MATCH(ROWS($G$2:Таблица2[[#This Row],[Индекс]]),Таблица2[Индекс],0)),\"\")","v":""}]
[null,null,null,100,"Полюс желтый",{"$f":"NOT(ISERROR(SEARCH(act_cell,Таблица2[[#This Row],[Наименование]])))","v":false},{"$f":"IF(Таблица2[[#This Row],[Статус]],COUNTIF($F$2:Таблица2[[#This Row],[Статус]],TRUE),\"\")","v":""},{"$f":"IFERROR(INDEX(Таблица2[Наименование],MATCH(ROWS($G$2:Таблица2[[#This Row],[Индекс]]),Таблица2[Индекс],0)),\"\")","v":""}]
[null,null,null,100,"Полюс зеленый",{"$f":"NOT(ISERROR(SEARCH(act_cell,Таблица2[[#This Row],[Наименование]])))","v":false},{"$f":"IF(Таблица2[[#This Row],[Статус]],COUNTIF($F$2:Таблица2[[#This Row],[Статус]],TRUE),\"\")","v":""},{"$f":"IFERROR(INDEX(Таблица2[Наименование],MATCH(ROWS($G$2:Таблица2[[#This Row],[Индекс]]),Таблица2[Индекс],0)),\"\")","v":""}]
[null,null,null,100,"Радуга белая",{"$f":"NOT(ISERROR(SEARCH(act_cell,Таблица2[[#This Row],[Наименование]])))","v":false},{"$f":"IF(Таблица2[[#This Row],[Статус]],COUNTIF($F$2:Таблица2[[#This Row],[Статус]],TRUE),\"\")","v":""},{"$f":"IFERROR(INDEX(Таблица2[Наименование],MATCH(ROWS($G$2:Таблица2[[#This Row],[Индекс]]),Таблица2[Индекс],0)),\"\")","v":""}]
[null,null,null,100,"Радуга синяя",{"$f":"NOT(ISERROR(SEARCH(act_cell,Таблица2[[#This Row],[Наименование]])))","v":false},{"$f":"IF(Таблица2[[#This Row],[Статус]],COUNTIF($F$2:Таблица2[[#This Row],[Статус]],TRUE),\"\")","v":""},{"$f":"IFERROR(INDEX(Таблица2[Наименование],MATCH(ROWS($G$2:Таблица2[[#This Row],[Индекс]]),Таблица2[Индекс],0)),\"\")","v":""}]
[null,null,null,100,"Сахара 01 (белая)",{"$f":"NOT(ISERROR(SEARCH(act_cell,Таблица2[[#This Row],[Наименование]])))","v":false},{"$f":"IF(Таблица2[[#This Row],[Статус]],COUNTIF($F$2:Таблица2[[#This Row],[Статус]],TRUE),\"\")","v":""},{"$f":"IFERROR(INDEX(Таблица2[Наименование],MATCH(ROWS($G$2:Таблица2[[#This Row],[Индекс]]),Таблица2[Индекс],0)),\"\")","v":""}]
[null,null,null,100,"Сахара 02 (бежевая)",{"$f":"NOT(ISERROR(SEARCH(act_cell,Таблица2[[#This Row],[Наименование]])))","v":false},{"$f":"IF(Таблица2[[#This Row],[Статус]],COUNTIF($F$2:Таблица2[[#This Row],[Статус]],TRUE),\"\")","v":""},{"$f":"IFERROR(INDEX(Таблица2[Наименование],MATCH(ROWS($G$2:Таблица2[[#This Row],[Индекс]]),Таблица2[Индекс],0)),\"\")","v":""}]
[null,null,null,100,"Союз 03 белый",{"$f":"NOT(ISERROR(SEARCH(act_cell,Таблица2[[#This Row],[Наименование]])))","v":false},{"$f":"IF(Таблица2[[#This Row],[Статус]],COUNTIF($F$2:Таблица2[[#This Row],[Статус]],TRUE),\"\")","v":""},{"$f":"IFERROR(INDEX(Таблица2[Наименование],MATCH(ROWS($G$2:Таблица2[[#This Row],[Индекс]]),Таблица2[Индекс],0)),\"\")","v":""}]
[null,null,null,100,"Союз 03 бежевый",{"$f":"NOT(ISERROR(SEARCH(act_cell,Таблица2[[#This Row],[Наименование]])))","v":false},{"$f":"IF(Таблица2[[#This Row],[Статус]],COUNTIF($F$2:Таблица2[[#This Row],[Статус]],TRUE),\"\")","v":""},{"$f":"IFERROR(INDEX(Таблица2[Наименование],MATCH(ROWS($G$2:Таблица2[[#This Row],[Индекс]]),Таблица2[Индекс],0)),\"\")","v":""}]
[null,null,null,100,"Союз 03 бюриза",{"$f":"NOT(ISERROR(SEARCH(act_cell,Таблица2[[#This Row],[Наименование]])))","v":false},{"$f":"IF(Таблица2[[#This Row],[Статус]],COUNTIF($F$2:Таблица2[[#This Row],[Статус]],TRUE),\"\")","v":""},{"$f":"IFERROR(INDEX(Таблица2[Наименование],MATCH(ROWS($G$2:Таблица2[[#This Row],[Индекс]]),Таблица2[Индекс],0)),\"\")","v":""}]
[null,null,null,100,"Союз 03 синий",{"$f":"NOT(ISERROR(SEARCH(act_cell,Таблица2[[#This Row],[Наименование]])))","v":false},{"$f":"IF(Таблица2[[#This Row],[Статус]],COUNTIF($F$2:Таблица2[[#This Row],[Статус]],TRUE),\"\")","v":""},{"$f":"IFERROR(INDEX(Таблица2[Наименование],MATCH(ROWS($G$2:Таблица2[[#This Row],[Индекс]]),Таблица2[Индекс],0)),\"\")","v":""}]
[null,null,null,100,"Союз 03 светло синий",{"$f":"NOT(ISERROR(SEARCH(act_cell,Таблица2[[#This Row],[Наименование]])))","v":false},{"$f":"IF(Таблица2[[#This Row],[Статус]],COUNTIF($F$2:Таблица2[[#This Row],[Статус]],TRUE),\"\")","v":""},{"$f":"IFERROR(INDEX(Таблица2[Наименование],MATCH(ROWS($G$2:Таблица2[[#This Row],[Индекс]]),Таблица2[Индекс],0)),\"\")","v":""}]
[null,null,null,100,"Союз 03 серый ",{"$f":"NOT(ISERROR(SEARCH(act_cell,Таблица2[[#This Row],[Наименование]])))","v":false},{"$f":"IF(Таблица2[[#This Row],[Статус]],COUNTIF($F$2:Таблица2[[#This Row],[Статус]],TRUE),\"\")","v":""},{"$f":"IFERROR(INDEX(Таблица2[Наименование],MATCH(ROWS($G$2:Таблица2[[#This Row],[Индекс]]),Таблица2[Индекс],0)),\"\")","v":""}]
[null,null,null,100,"Союз 03 голубой",{"$f":"NOT(ISERROR(SEARCH(act_cell,Таблица2[[#This Row],[Наименование]])))","v":false},{"$f":"IF(Таблица2[[#This Row],[Статус]],COUNTIF($F$2:Таблица2[[#This Row],[Статус]],TRUE),\"\")","v":""},{"$f":"IFERROR(INDEX(Таблица2[Наименование],MATCH(ROWS($G$2:Таблица2[[#This Row],[Индекс]]),Таблица2[Индекс],0)),\"\")","v":""}]
[null,null,null,100,"Союз 03 сиреневый",{"$f":"NOT(ISERROR(SEARCH(act_cell,Таблица2[[#This Row],[Наименование]])))","v":false},{"$f":"IF(Таблица2[[#This Row],[Статус]],COUNTIF($F$2:Таблица2[[#This Row],[Статус]],TRUE),\"\")","v":""},{"$f":"IFERROR(INDEX(Таблица2[Наименование],MATCH(ROWS($G$2:Таблица2[[#This Row],[Индекс]]),Таблица2[Индекс],0)),\"\")","v":""}]
[null,null,null,100,"Союз 03 темно коричневый",{"$f":"NOT(ISERROR(SEARCH(act_cell,Таблица2[[#This Row],[Наименование]])))","v":false},{"$f":"IF(Таблица2[[#This Row],[Статус]],COUNTIF($F$2:Таблица2[[#This Row],[Статус]],TRUE),\"\")","v":""},{"$f":"IFERROR(INDEX(Таблица2[Наименование],MATCH(ROWS($G$2:Таблица2[[#This Row],[Индекс]]),Таблица2[Индекс],0)),\"\")","v":""}]
[null,null,null,100,"Союз 03 ярко желтый ",{"$f":"NOT(ISERROR(SEARCH(act_cell,Таблица2[[#This Row],[Наименование]])))","v":false},{"$f":"IF(Таблица2[[#This Row],[Статус]],COUNTIF($F$2:Таблица2[[#This Row],[Статус]],TRUE),\"\")","v":""},{"$f":"IFERROR(INDEX(Таблица2[Наименование],MATCH(ROWS($G$2:Таблица2[[#This Row],[Индекс]]),Таблица2[Индекс],0)),\"\")","v":""}]
[null,null,null,100,"Союз 03 терракотовый",{"$f":"NOT(ISERROR(SEARCH(act_cell,Таблица2[[#This Row],[Наименование]])))","v":false},{"$f":"IF(Таблица2[[#This Row],[Статус]],COUNTIF($F$2:Таблица2[[#This Row],[Статус]],TRUE),\"\")","v":""},{"$f":"IFERROR(INDEX(Таблица2[Наименование],MATCH(ROWS($G$2:Таблица2[[#This Row],[Индекс]]),Таблица2[Индекс],0)),\"\")","v":""}]
[null,null,null,100,"Союз 03 фисташковый",{"$f":"NOT(ISERROR(SEARCH(act_cell,Таблица2[[#This Row],[Наименование]])))","v":false},{"$f":"IF(Таблица2[[#This Row],[Статус]],COUNTIF($F$2:Таблица2[[#This Row],[Статус]],TRUE),\"\")","v":""},{"$f":"IFERROR(INDEX(Таблица2[Наименование],MATCH(ROWS($G$2:Таблица2[[#This Row],[Индекс]]),Таблица2[Индекс],0)),\"\")","v":""}]
[null,null,null,100,"Союз 03 вишня",{"$f":"NOT(ISERROR(SEARCH(act_cell,Таблица2[[#This Row],[Наименование]])))","v":false},{"$f":"IF(Таблица2[[#This Row],[Статус]],COUNTIF($F$2:Таблица2[[#This Row],[Статус]],TRUE),\"\")","v":""},{"$f":"IFERROR(INDEX(Таблица2[Наименование],MATCH(ROWS($G$2:Таблица2[[#This Row],[Индекс]]),Таблица2[Индекс],0)),\"\")","v":""}]
[null,null,null,100,"Союз 03 оранжевый",{"$f":"NOT(ISERROR(SEARCH(act_cell,Таблица2[[#This Row],[Наименование]])))","v":false},{"$f":"IF(Таблица2[[#This Row],[Статус]],COUNTIF($F$2:Таблица2[[#This Row],[Статус]],TRUE),\"\")","v":""},{"$f":"IFERROR(INDEX(Таблица2[Наименование],MATCH(ROWS($G$2:Таблица2[[#This Row],[Индекс]]),Таблица2[Индекс],0)),\"\")","v":""}]
[null,null,null,100,"Союз 03 желтый",{"$f":"NOT(ISERROR(SEARCH(act_cell,Таблица2[[#This Row],[Наименование]])))","v":false},{"$f":"IF(Таблица2[[#This Row],[Статус]],COUNTIF($F$2:Таблица2[[#This Row],[Статус]],TRUE),\"\")","v":""},{"$f":"IFERROR(INDEX(Таблица2[Наименование],MATCH(ROWS($G$2:Таблица2[[#This Row],[Индекс]]),Таблица2[Индекс],0)),\"\")","v":""}]
[null,null,null,100,"София 01 (белая)",{"$f":"NOT(ISERROR(SEARCH(act_cell,Таблица2[[#This Row],[Наименование]])))","v":false},{"$f":"IF(Таблица2[[#This Row],[Статус]],COUNTIF($F$2:Таблица2[[#This Row],[Статус]],TRUE),\"\")","v":""},{"$f":"IFERROR(INDEX(Таблица2[Наименование],MATCH(ROWS($G$2:Таблица2[[#This Row],[Индекс]]),Таблица2[Индекс],0)),\"\")","v":""}]
[null,null,null,100,"София 03 (розовая)",{"$f":"NOT(ISERROR(SEARCH(act_cell,Таблица2[[#This Row],[Наименование]])))","v":false},{"$f":"IF(Таблица2[[#This Row],[Статус]],COUNTIF($F$2:Таблица2[[#This Row],[Статус]],TRUE),\"\")","v":""},{"$f":"IFERROR(INDEX(Таблица2[Наименование],MATCH(ROWS($G$2:Таблица2[[#This Row],[Индекс]]),Таблица2[Индекс],0)),\"\")","v":""}]
[null,null,null,100,"Сиде белый",{"$f":"NOT(ISERROR(SEARCH(act_cell,Таблица2[[#This Row],[Наименование]])))","v":false},{"$f":"IF(Таблица2[[#This Row],[Статус]],COUNTIF($F$2:Таблица2[[#This Row],[Статус]],TRUE),\"\")","v":""},{"$f":"IFERROR(INDEX(Таблица2[Наименование],MATCH(ROWS($G$2:Таблица2[[#This Row],[Индекс]]),Таблица2[Индекс],0)),\"\")","v":""}]
[null,null,null,100,"Сиде бежевый",{"$f":"NOT(ISERROR(SEARCH(act_cell,Таблица2[[#This Row],[Наименование]])))","v":false},{"$f":"IF(Таблица2[[#This Row],[Статус]],COUNTIF($F$2:Таблица2[[#This Row],[Статус]],TRUE),\"\")","v":""},{"$f":"IFERROR(INDEX(Таблица2[Наименование],MATCH(ROWS($G$2:Таблица2[[#This Row],[Индекс]]),Таблица2[Индекс],0)),\"\")","v":""}]
[null,null,null,100,"Сиде терракотовый",{"$f":"NOT(ISERROR(SEARCH(act_cell,Таблица2[[#This Row],[Наименование]])))","v":false},{"$f":"IF(Таблица2[[#This Row],[Статус]],COUNTIF($F$2:Таблица2[[#This Row],[Статус]],TRUE),\"\")","v":""},{"$f":"IFERROR(INDEX(Таблица2[Наименование],MATCH(ROWS($G$2:Таблица2[[#This Row],[Индекс]]),Таблица2[Индекс],0)),\"\")","v":""}]
[null,null,null,100,"Сиде коричневый",{"$f":"NOT(ISERROR(SEARCH(act_cell,Таблица2[[#This Row],[Наименование]])))","v":false},{"$f":"IF(Таблица2[[#This Row],[Статус]],COUNTIF($F$2:Таблица2[[#This Row],[Статус]],TRUE),\"\")","v":""},{"$f":"IFERROR(INDEX(Таблица2[Наименование],MATCH(ROWS($G$2:Таблица2[[#This Row],[Индекс]]),Таблица2[Индекс],0)),\"\")","v":""}]
[null,null,null,100,"Сиде фуксия",{"$f":"NOT(ISERROR(SEARCH(act_cell,Таблица2[[#This Row],[Наименование]])))","v":false},{"$f":"IF(Таблица2[[#This Row],[Статус]],COUNTIF($F$2:Таблица2[[#This Row],[Статус]],TRUE),\"\")","v":""},{"$f":"IFERROR(INDEX(Таблица2[Наименование],MATCH(ROWS($G$2:Таблица2[[#This Row],[Индекс]]),Таблица2[Индекс],0)),\"\")","v":""}]
[null,null,null,100,"Сиде голубой",{"$f":"NOT(ISERROR(SEARCH(act_cell,Таблица2[[#This Row],[Наименование]])))","v":false},{"$f":"IF(Таблица2[[#This Row],[Статус]],COUNTIF($F$2:Таблица2[[#This Row],[Статус]],TRUE),\"\")","v":""},{"$f":"IFERROR(INDEX(Таблица2[Наименование],MATCH(ROWS($G$2:Таблица2[[#This Row],[Индекс]]),Таблица2[Индекс],0)),\"\")","v":""}]
[null,null,null,100,"Сиде серебро 80102 (Восток) new",{"$f":"NOT(ISERROR(SEARCH(act_cell,Таблица2[[#This Row],[Наименование]])))","v":false},{"$f":"IF(Таблица2[[#This Row],[Статус]],COUNTIF($F$2:Таблица2[[#This Row],[Статус]],TRUE),\"\")","v":""},{"$f":"IFERROR(INDEX(Таблица2[Наименование],MATCH(ROWS($G$2:Таблица2[[#This Row],[Индекс]]),Таблица2[Индекс],0)),\"\")","v":""}]
[null,null,null,100,"Сиде серый",{"$f":"NOT(ISERROR(SEARCH(act_cell,Таблица2[[#This Row],[Наименование]])))","v":false},{"$f":"IF(Таблица2[[#This Row],[Статус]],COUNTIF($F$2:Таблица2[[#This Row],[Статус]],TRUE),\"\")","v":""},{"$f":"IFERROR(INDEX(Таблица2[Наименование],MATCH(ROWS($G$2:Таблица2[[#This Row],[Индекс]]),Таблица2[Индекс],0)),\"\")","v":""}]
[null,null,null,100,"Сиде 8093 (зеленый)",{"$f":"NOT(ISERROR(SEARCH(act_cell,Таблица2[[#This Row],[Наименование]])))","v":false},{"$f":"IF(Таблица2[[#This Row],[Статус]],COUNTIF($F$2:Таблица2[[#This Row],[Статус]],TRUE),\"\")","v":""},{"$f":"IFERROR(INDEX(Таблица2[Наименование],MATCH(ROWS($G$2:Таблица2[[#This Row],[Индекс]]),Таблица2[Индекс],0)),\"\")","v":""}]
[null,null,null,100,"Сомюр блэк-аут зеленый",{"$f":"NOT(ISERROR(SEARCH(act_cell,Таблица2[[#This Row],[Наименование]])))","v":false},{"$f":"IF(Таблица2[[#This Row],[Статус]],COUNTIF($F$2:Таблица2[[#This Row],[Статус]],TRUE),\"\")","v":""},{"$f":"IFERROR(INDEX(Таблица2[Наименование],MATCH(ROWS($G$2:Таблица2[[#This Row],[Индекс]]),Таблица2[Индекс],0)),\"\")","v":""}]
[null,null,null,100,"Сказка белая",{"$f":"NOT(ISERROR(SEARCH(act_cell,Таблица2[[#This Row],[Наименование]])))","v":false},{"$f":"IF(Таблица2[[#This Row],[Статус]],COUNTIF($F$2:Таблица2[[#This Row],[Статус]],TRUE),\"\")","v":""},{"$f":"IFERROR(INDEX(Таблица2[Наименование],MATCH(ROWS($G$2:Таблица2[[#This Row],[Индекс]]),Таблица2[Индекс],0)),\"\")","v":""}]
[null,null,null,100,"Сказка светло серая",{"$f":"NOT(ISERROR(SEARCH(act_cell,Таблица2[[#This Row],[Наименование]])))","v":false},{"$f":"IF(Таблица2[[#This Row],[Статус]],COUNTIF($F$2:Таблица2[[#This Row],[Статус]],TRUE),\"\")","v":""},{"$f":"IFERROR(INDEX(Таблица2[Наименование],MATCH(ROWS($G$2:Таблица2[[#This Row],[Индекс]]),Таблица2[Индекс],0)),\"\")","v":""}]
[null,null,null,100,"Сказка кремовая",{"$f":"NOT(ISERROR(SEARCH(act_cell,Таблица2[[#This Row],[Наименование]])))","v":false},{"$f":"IF(Таблица2[[#This Row],[Статус]],COUNTIF($F$2:Таблица2[[#This Row],[Статус]],TRUE),\"\")","v":""},{"$f":"IFERROR(INDEX(Таблица2[Наименование],MATCH(ROWS($G$2:Таблица2[[#This Row],[Индекс]]),Таблица2[Индекс],0)),\"\")","v":""}]
[null,null,null,100,"Фокус блэк-аут бежевый",{"$f":"NOT(ISERROR(SEARCH(act_cell,Таблица2[[#This Row],[Наименование]])))","v":false},{"$f":"IF(Таблица2[[#This Row],[Статус]],COUNTIF($F$2:Таблица2[[#This Row],[Статус]],TRUE),\"\")","v":""},{"$f":"IFERROR(INDEX(Таблица2[Наименование],MATCH(ROWS($G$2:Таблица2[[#This Row],[Индекс]]),Таблица2[Индекс],0)),\"\")","v":""}]
[null,null,null,100,"Фокус блэк-аут серый 8034 (Восток) new",{"$f":"NOT(ISERROR(SEARCH(act_cell,Таблица2[[#This Row],[Наименование]])))","v":false},{"$f":"IF(Таблица2[[#This Row],[Статус]],COUNTIF($F$2:Таблица2[[#This Row],[Статус]],TRUE),\"\")","v":""},{"$f":"IFERROR(INDEX(Таблица2[Наименование],MATCH(ROWS($G$2:Таблица2[[#This Row],[Индекс]]),Таблица2[Индекс],0)),\"\")","v":""}]
[null,null,null,100,"Фокус блэк-аут белый",{"$f":"NOT(ISERROR(SEARCH(act_cell,Таблица2[[#This Row],[Наименование]])))","v":false},{"$f":"IF(Таблица2[[#This Row],[Статус]],COUNTIF($F$2:Таблица2[[#This Row],[Статус]],TRUE),\"\")","v":""},{"$f":"IFERROR(INDEX(Таблица2[Наименование],MATCH(ROWS($G$2:Таблица2[[#This Row],[Индекс]]),Таблица2[Индекс],0)),\"\")","v":""}]
[null,null,null,100,"Фортуна белая",{"$f":"NOT(ISERROR(SEARCH(act_cell,Таблица2[[#This Row],[Наименование]])))","v":false},{"$f":"IF(Таблица2[[#This Row],[Статус]],COUNTIF($F$2:Таблица2[[#This Row],[Статус]],TRUE),\"\")","v":""},{"$f":"IFERROR(INDEX(Таблица2[Наименование],MATCH(ROWS($G$2:Таблица2[[#This Row],[Индекс]]),Таблица2[Индекс],0)),\"\")","v":""}]
[null,null,null,100,"Фортуна голубой",{"$f":"NOT(ISERROR(SEARCH(act_cell,Таблица2[[#This Row],[Наименование]])))","v":false},{"$f":"IF(Таблица2[[#This Row],[Статус]],COUNTIF($F$2:Таблица2[[#This Row],[Статус]],TRUE),\"\")","v":""},{"$f":"IFERROR(INDEX(Таблица2[Наименование],MATCH(ROWS($G$2:Таблица2[[#This Row],[Индекс]]),Таблица2[Индекс],0)),\"\")","v":""}]
[null,null,null,100,"Ханой белый",{"$f":"NOT(ISERROR(SEARCH(act_cell,Таблица2[[#This Row],[Наименование]])))","v":false},{"$f":"IF(Таблица2[[#This Row],[Статус]],COUNTIF($F$2:Таблица2[[#This Row],[Статус]],TRUE),\"\")","v":""},{"$f":"IFERROR(INDEX(Таблица2[Наименование],MATCH(ROWS($G$2:Таблица2[[#This Row],[Индекс]]),Таблица2[Индекс],0)),\"\")","v":""}]
[null,null,null,100,"Ханой венге",{"$f":"NOT(ISERROR(SEARCH(act_cell,Таблица2[[#This Row],[Наименование]])))","v":false},{"$f":"IF(Таблица2[[#This Row],[Статус]],COUNTIF($F$2:Таблица2[[#This Row],[Статус]],TRUE),\"\")","v":""},{"$f":"IFERROR(INDEX(Таблица2[Наименование],MATCH(ROWS($G$2:Таблица2[[#This Row],[Индекс]]),Таблица2[Индекс],0)),\"\")","v":""}]
[null,null,null,100,"Ханой коричневый",{"$f":"NOT(ISERROR(SEARCH(act_cell,Таблица2[[#This Row],[Наименование]])))","v":false},{"$f":"IF(Таблица2[[#This Row],[Статус]],COUNTIF($F$2:Таблица2[[#This Row],[Статус]],TRUE),\"\")","v":""},{"$f":"IFERROR(INDEX(Таблица2[Наименование],MATCH(ROWS($G$2:Таблица2[[#This Row],[Индекс]]),Таблица2[Индекс],0)),\"\")","v":""}]
[null,null,null,100,"Шелк терракотовый",{"$f":"NOT(ISERROR(SEARCH(act_cell,Таблица2[[#This Row],[Наименование]])))","v":false},{"$f":"IF(Таблица2[[#This Row],[Статус]],COUNTIF($F$2:Таблица2[[#This Row],[Статус]],TRUE),\"\")","v":""},{"$f":"IFERROR(INDEX(Таблица2[Наименование],MATCH(ROWS($G$2:Таблица2[[#This Row],[Индекс]]),Таблица2[Индекс],0)),\"\")","v":""}]
[null,null,null,100,"Шелк зеленый",{"$f":"NOT(ISERROR(SEARCH(act_cell,Таблица2[[#This Row],[Наименование]])))","v":false},{"$f":"IF(Таблица2[[#This Row],[Статус]],COUNTIF($F$2:Таблица2[[#This Row],[Статус]],TRUE),\"\")","v":""},{"$f":"IFERROR(INDEX(Таблица2[Наименование],MATCH(ROWS($G$2:Таблица2[[#This Row],[Индекс]]),Таблица2[Индекс],0)),\"\")","v":""}]
[null,null,null,100,"Шелк 88083 (желтый)",{"$f":"NOT(ISERROR(SEARCH(act_cell,Таблица2[[#This Row],[Наименование]])))","v":false},{"$f":"IF(Таблица2[[#This Row],[Статус]],COUNTIF($F$2:Таблица2[[#This Row],[Статус]],TRUE),\"\")","v":""},{"$f":"IFERROR(INDEX(Таблица2[Наименование],MATCH(ROWS($G$2:Таблица2[[#This Row],[Индекс]]),Таблица2[Индекс],0)),\"\")","v":""}]
[null,null,null,100,"Шелк 88081 (белый)",{"$f":"NOT(ISERROR(SEARCH(act_cell,Таблица2[[#This Row],[Наименование]])))","v":false},{"$f":"IF(Таблица2[[#This Row],[Статус]],COUNTIF($F$2:Таблица2[[#This Row],[Статус]],TRUE),\"\")","v":""},{"$f":"IFERROR(INDEX(Таблица2[Наименование],MATCH(ROWS($G$2:Таблица2[[#This Row],[Индекс]]),Таблица2[Индекс],0)),\"\")","v":""}]
[null,null,null,100,"Шелк 88187 (светло зеленый)",{"$f":"NOT(ISERROR(SEARCH(act_cell,Таблица2[[#This Row],[Наименование]])))","v":false},{"$f":"IF(Таблица2[[#This Row],[Статус]],COUNTIF($F$2:Таблица2[[#This Row],[Статус]],TRUE),\"\")","v":""},{"$f":"IFERROR(INDEX(Таблица2[Наименование],MATCH(ROWS($G$2:Таблица2[[#This Row],[Индекс]]),Таблица2[Индекс],0)),\"\")","v":""}]
[null,null,null,100,"Шелк 88226 (фиолетовый)",{"$f":"NOT(ISERROR(SEARCH(act_cell,Таблица2[[#This Row],[Наименование]])))","v":false},{"$f":"IF(Таблица2[[#This Row],[Статус]],COUNTIF($F$2:Таблица2[[#This Row],[Статус]],TRUE),\"\")","v":""},{"$f":"IFERROR(INDEX(Таблица2[Наименование],MATCH(ROWS($G$2:Таблица2[[#This Row],[Индекс]]),Таблица2[Индекс],0)),\"\")","v":""}]
[null,null,null,100,"Шелк 88046 (синий)",{"$f":"NOT(ISERROR(SEARCH(act_cell,Таблица2[[#This Row],[Наименование]])))","v":false},{"$f":"IF(Таблица2[[#This Row],[Статус]],COUNTIF($F$2:Таблица2[[#This Row],[Статус]],TRUE),\"\")","v":""},{"$f":"IFERROR(INDEX(Таблица2[Наименование],MATCH(ROWS($G$2:Таблица2[[#This Row],[Индекс]]),Таблица2[Индекс],0)),\"\")","v":""}]
[null,null,null,100,"Шелк 88192 (темно зеленый)",{"$f":"NOT(ISERROR(SEARCH(act_cell,Таблица2[[#This Row],[Наименование]])))","v":false},{"$f":"IF(Таблица2[[#This Row],[Статус]],COUNTIF($F$2:Таблица2[[#This Row],[Статус]],TRUE),\"\")","v":""},{"$f":"IFERROR(INDEX(Таблица2[Наименование],MATCH(ROWS($G$2:Таблица2[[#This Row],[Индекс]]),Таблица2[Индекс],0)),\"\")","v":""}]
[null,null,null,100,"Шелк 88046 (голубой) new",{"$f":"NOT(ISERROR(SEARCH(act_cell,Таблица2[[#This Row],[Наименование]])))","v":false},{"$f":"IF(Таблица2[[#This Row],[Статус]],COUNTIF($F$2:Таблица2[[#This Row],[Статус]],TRUE),\"\")","v":""},{"$f":"IFERROR(INDEX(Таблица2[Наименование],MATCH(ROWS($G$2:Таблица2[[#This Row],[Индекс]]),Таблица2[Индекс],0)),\"\")","v":""}]
[null,null,null,100,"Шелк 88192 (лилово-розовый) new",{"$f":"NOT(ISERROR(SEARCH(act_cell,Таблица2[[#This Row],[Наименование]])))","v":false},{"$f":"IF(Таблица2[[#This Row],[Статус]],COUNTIF($F$2:Таблица2[[#This Row],[Статус]],TRUE),\"\")","v":""},{"$f":"IFERROR(INDEX(Таблица2[Наименование],MATCH(ROWS($G$2:Таблица2[[#This Row],[Индекс]]),Таблица2[Индекс],0)),\"\")","v":""}]
[null,null,null,100,"Шелк 88084 (песочный) new",{"$f":"NOT(ISERROR(SEARCH(act_cell,Таблица2[[#This Row],[Наименование]])))","v":false},{"$f":"IF(Таблица2[[#This Row],[Статус]],COUNTIF($F$2:Таблица2[[#This Row],[Статус]],TRUE),\"\")","v":""},{"$f":"IFERROR(INDEX(Таблица2[Наименование],MATCH(ROWS($G$2:Таблица2[[#This Row],[Индекс]]),Таблица2[Индекс],0)),\"\")","v":""}]
[null,null,null,100,"Шёлк серый (Amigo)",{"$f":"NOT(ISERROR(SEARCH(act_cell,Таблица2[[#This Row],[Наименование]])))","v":false},{"$f":"IF(Таблица2[[#This Row],[Статус]],COUNTIF($F$2:Таблица2[[#This Row],[Статус]],TRUE),\"\")","v":""},{"$f":"IFERROR(INDEX(Таблица2[Наименование],MATCH(ROWS($G$2:Таблица2[[#This Row],[Индекс]]),Таблица2[Индекс],0)),\"\")","v":""}]

{"sheet":"Лист3","index":2,"n_rows":5,"n_cols":2,"rows_kept":5,"cut":false,"hidden":false,"merged":[]}
["Вертикальные жалюзи","ц.р."]
["Горизонтальные жалюзи","к.р."]
["Рулонные шторы","лев."]
["Кассетная система рулонная","пр."]
["Кассетная система Isotra"]